Workbook

Sheet Base
A1: OrderDate | B1: Region | C1: Rep | D1: Item | E1: Units | F1: Unit Price
A2: 2014-07-04 | B2: East | C2: Richard | D2: Pen Set | E2: 62 | F2: 4.99
A3: 2014-07-12 | B3: East | C3: Nick | D3: Binder | E3: 29 | F3: 1.99
A4: 2014-07-21 | B4: Central | C4: Morgan | D4: Pen Set | E4: 55 | F4: 12.49
A5: 2014-07-29 | B5: East | C5: Susan | D5: Binder | E5: 81 | F5: 19.99
A6: 2014-08-07 | B6: Central | C6: Matthew | D6: Pen Set | E6: 42 | F6: 23.95
A7: 2014-08-15 | B7: East | C7: Richard | D7: Pencil | E7: 35 | F7: 4.99
A8: 2014-08-24 | B8: West | C8: James | D8: Desk | E8: 3 | F8: 275
A9: 2014-09-01 | B9: Central | C9: Smith | D9: Desk | E9: 2 | F9: 125
A10: 2014-09-10 | B10: Central | C10: Bill | D10: Pencil | E10: 7 | F10: 1.29
A11: 2014-09-18 | B11: East | C11: Richard | D11: Pen Set | E11: 16 | F11: 15.99
A12: 2014-09-27 | B12: West | C12: James | D12: Pen | E12: 76 | F12: 1.99
A13: 2014-10-05 | B13: Central | C13: Morgan | D13: Binder | E13: 28 | F13: 8.99
A14: 2014-10-14 | B14: West | C14: Thomas | D14: Binder | E14: 57 | F14: 19.99
A15: 2014-10-22 | B15: East | C15: Richard | D15: Pen | E15: 64 | F15: 8.99
A16: 2014-10-31 | B16: Central | C16: Rachel | D16: Pencil | E16: 14 | F16: 1.29
A17: 2014-11-08 | B17: East | C17: Susan | D17: Pen | E17: 15 | F17: 19.99
A18: 2014-11-17 | B18: Centrale | C18: Alex | D18: Binder | E18: 11 | F18: 4.99
A19: 2014-11-25 | B19: Central | C19: Matthew | D19: Pen Set | E19: 96 | F19: 4.99
A20: 2014-12-04 | B20: Central | C20: Alex | D20: Binder | E20: 94 | F20: 19.99
A21: 2014-12-12 | B21: Central | C21: Smith | D21: Pencil | E21: 67 | F21: 1.29
A22: 2014-12-21 | B22: Central | C22: Rachel | D22: Binder | E22: 28 | F22: 4.99
A23: 2014-12-29 | B23: East | C23: Susan | D23: Pen Set | E23: 74 | F23: 15.99
A24: 2015-01-06 | B24: East | C24: Richard | D24: Pencil | E24: 95 | F24: 1.99
A25: 2015-01-15 | B25: Central | C25: Bill | D25: Binder | E25: 46 | F25: 8.99
A26: 2015-01-23 | B26: Central | C26: Matthew | D26: Binder | E26: 50 | F26: 19.99
A27: 2015-02-01 | B27: Central | C27: Smith | D27: Binder | E27: 87 | F27: 15
A28: 2015-02-09 | B28: Central | C28: Alex | D28: Pencil | E28: 36 | F28: 4.99
A29: 2015-02-18 | B29: East | C29: Richard | D29: Binder | E29: 4 | F29: 4.99
A30: 2015-02-26 | B30: Central | C30: Bill | D30: Pen | E30: 27 | F30: 19.99
A31: 2015-03-07 | B31: West | C31: James | D31: Binder | E31: 7 | F31: 19.99
A32: 2015-03-15 | B32: West | C32: James | D32: Pencil | E32: 56 | F32: 2.99
A33: 2015-03-24 | B33: Central | C33: Alex | D33: Pen Set | E33: 50 | F33: 4.99
A34: 2015-04-01 | B34: East | C34: Richard | D34: Binder | E34: 60 | F34: 4.99
A35: 2015-04-10 | B35: Central | C35: Rachel | D35: Pencil | E35: 66 | F35: 1.99
A36: 2015-04-18 | B36: Central | C36: Rachel | D36: Pencil | E36: 75 | F36: 1.99
A37: 2015-04-27 | B37: East | C37: Nick | D37: Pen | E37: 96 | F37: 4.99
A38: 2015-05-05 | B38: Central | C38: Alex | D38: Pencil | E38: 90 | F38: 4.99
A39: 2015-05-14 | B39: Central | C39: Bill | D39: Pencil | E39: 53 | F39: 1.29
A40: 2015-05-22 | B40: West | C40: Thomas | D40: Pencil | E40: 32 | F40: 1.99
A41: 2015-05-31 | B41: Central | C41: Bill | D41: Binder | E41: 80 | F41: 8.99
A42: 2015-06-08 | B42: East | C42: Richard | D42: Binder | E42: 60 | F42: 8.99
A43: 2015-06-17 | B43: Central | C43: Matthew | D43: Desk | E43: 5 | F43: 125
A44: 2015-06-25 | B44: Central | C44: Morgan | D44: Pencil | E44: 90 | F44: 4.99
A45: 2115-06-25 | B45: Central | C45: Matthew | D45: Binder | E45: 45 | F45: 3.99

Sheet VLookup
A1: First Name | B1: Last Name | C1: Tier | D1: Hire Date
A2: Alex | B2: Jones | C2: 1 | D2: 2013-01-10
A3: Bill | B3: Smith | C3: 1 | D3: 2016-07-06
A4: James | B4: Hammel | C4: 2 | D4: 2015-06-25
A5: Matthew | B5: Post | C5: 3 | D5: 2014-08-21
A6: Morgan | B6: Freeman | C6: 2 | D6: 2015-09-28
A7: Nick | B7: Wilder | C7: 3 | D7: 2014-12-15
A8: Rachel | B8: Taylor | C8: 5 | D8: 2015-03-06
A9: Richard | B9: Johnson | C9: 5 | D9: 2015-03-28
A10: Smith | B10: Smithy | C10: 4 | D10: 2014-07-16
A11: Susan | B11: Sarandon | C11: 4 | D11: 2015-09-12
A12: Thomas | B12: Jefferson | C12: 1 | D12: 2015-02-22

Sheet Macro
A1: OrderDate | B1: Region | C1: Rep | D1: Item | E1: Units | F1: Unit Price | G1: Total
A2: 2014-11-17 | B2: Centrale | C2: Alex | D2: Binder | E2: 11 | F2: 4.99 | G2: =Table2[[#This Row],[Units]]*Table2[[#This Row],[Unit Price]] -> 54.89
A3: 2014-12-04 | B3: Central | C3: Alex | D3: Binder | E3: 94 | F3: 19.99 | G3: =Table2[[#This Row],[Units]]*Table2[[#This Row],[Unit Price]] -> 1879.06
A4: 2015-02-09 | B4: Central | C4: Alex | D4: Pencil | E4: 36 | F4: 4.99 | G4: =Table2[[#This Row],[Units]]*Table2[[#This Row],[Unit Price]] -> 179.64
A5: 2015-03-24 | B5: Central | C5: Alex | D5: Pen Set | E5: 50 | F5: 4.99 | G5: =Table2[[#This Row],[Units]]*Table2[[#This Row],[Unit Price]] -> 249.5
A6: 2015-05-05 | B6: Central | C6: Alex | D6: Pencil | E6: 90 | F6: 4.99 | G6: =Table2[[#This Row],[Units]]*Table2[[#This Row],[Unit Price]] -> 449.1
A7: 2014-09-10 | B7: Central | C7: Bill | D7: Pencil | E7: 7 | F7: 1.29 | G7: =Table2[[#This Row],[Units]]*Table2[[#This Row],[Unit Price]] -> 9.03
A8: 2015-01-15 | B8: Central | C8: Bill | D8: Binder | E8: 46 | F8: 8.99 | G8: =Table2[[#This Row],[Units]]*Table2[[#This Row],[Unit Price]] -> 413.54
A9: 2015-02-26 | B9: Central | C9: Bill | D9: Pen | E9: 27 | F9: 19.99 | G9: =Table2[[#This Row],[Units]]*Table2[[#This Row],[Unit Price]] -> 539.73
A10: 2015-05-14 | B10: Central | C10: Bill | D10: Pencil | E10: 53 | F10: 1.29 | G10: =Table2[[#This Row],[Units]]*Table2[[#This Row],[Unit Price]] -> 68.37
A11: 2015-05-31 | B11: Central | C11: Bill | D11: Binder | E11: 80 | F11: 8.99 | G11: =Table2[[#This Row],[Units]]*Table2[[#This Row],[Unit Price]] -> 719.2
A12: 2014-08-24 | B12: West | C12: James | D12: Desk | E12: 3 | F12: 275 | G12: =Table2[[#This Row],[Units]]*Table2[[#This Row],[Unit Price]] -> 825
A13: 2014-09-27 | B13: West | C13: James | D13: Pen | E13: 76 | F13: 1.99 | G13: =Table2[[#This Row],[Units]]*Table2[[#This Row],[Unit Price]] -> 151.24
A14: 2015-03-07 | B14: West | C14: James | D14: Binder | E14: 7 | F14: 19.99 | G14: =Table2[[#This Row],[Units]]*Table2[[#This Row],[Unit Price]] -> 139.93
A15: 2015-03-15 | B15: West | C15: James | D15: Pencil | E15: 56 | F15: 2.99 | G15: =Table2[[#This Row],[Units]]*Table2[[#This Row],[Unit Price]] -> 167.44
A16: 2014-08-07 | B16: Central | C16: Matthew | D16: Pen Set | E16: 42 | F16: 23.95 | G16: =Table2[[#This Row],[Units]]*Table2[[#This Row],[Unit Price]] -> 1005.9
A17: 2014-11-25 | B17: Central | C17: Matthew | D17: Pen Set | E17: 96 | F17: 4.99 | G17: =Table2[[#This Row],[Units]]*Table2[[#This Row],[Unit Price]] -> 479.04
A18: 2015-01-23 | B18: Central | C18: Matthew | D18: Binder | E18: 50 | F18: 19.99 | G18: =Table2[[#This Row],[Units]]*Table2[[#This Row],[Unit Price]] -> 999.5
A19: 2015-06-17 | B19: Central | C19: Matthew | D19: Desk | E19: 5 | F19: 125 | G19: =Table2[[#This Row],[Units]]*Table2[[#This Row],[Unit Price]] -> 625
A20: 2015-06-25 | B20: Central | C20: Matthew | D20: Binder | E20: 45 | F20: 3.99 | G20: =Table2[[#This Row],[Units]]*Table2[[#This Row],[Unit Price]] -> 179.55
A21: 2014-07-21 | B21: Central | C21: Morgan | D21: Pen Set | E21: 55 | F21: 12.49 | G21: =Table2[[#This Row],[Units]]*Table2[[#This Row],[Unit Price]] -> 686.95
A22: 2014-10-05 | B22: Central | C22: Morgan | D22: Binder | E22: 28 | F22: 8.99 | G22: =Table2[[#This Row],[Units]]*Table2[[#This Row],[Unit Price]] -> 251.72
A23: 2015-06-25 | B23: Central | C23: Morgan | D23: Pencil | E23: 90 | F23: 4.99 | G23: =Table2[[#This Row],[Units]]*Table2[[#This Row],[Unit Price]] -> 449.1
A24: 2014-07-12 | B24: East | C24: Nick | D24: Binder | E24: 29 | F24: 1.99 | G24: =Table2[[#This Row],[Units]]*Table2[[#This Row],[Unit Price]] -> 57.71
A25: 2015-04-27 | B25: East | C25: Nick | D25: Pen | E25: 96 | F25: 4.99 | G25: =Table2[[#This Row],[Units]]*Table2[[#This Row],[Unit Price]] -> 479.04
A26: 2014-10-31 | B26: Central | C26: Rachel | D26: Pencil | E26: 14 | F26: 1.29 | G26: =Table2[[#This Row],[Units]]*Table2[[#This Row],[Unit Price]] -> 18.06
A27: 2014-12-21 | B27: Central | C27: Rachel | D27: Binder | E27: 28 | F27: 4.99 | G27: =Table2[[#This Row],[Units]]*Table2[[#This Row],[Unit Price]] -> 139.72
A28: 2015-04-10 | B28: Central | C28: Rachel | D28: Pencil | E28: 66 | F28: 1.99 | G28: =Table2[[#This Row],[Units]]*Table2[[#This Row],[Unit Price]] -> 131.34
A29: 2015-04-18 | B29: Central | C29: Rachel | D29: Pencil | E29: 75 | F29: 1.99 | G29: =Table2[[#This Row],[Units]]*Table2[[#This Row],[Unit Price]] -> 149.25
A30: 2014-07-04 | B30: East | C30: Richard | D30: Pen Set | E30: 62 | F30: 4.99 | G30: =Table2[[#This Row],[Units]]*Table2[[#This Row],[Unit Price]] -> 309.38
A31: 2014-08-15 | B31: East | C31: Richard | D31: Pencil | E31: 35 | F31: 4.99 | G31: =Table2[[#This Row],[Units]]*Table2[[#This Row],[Unit Price]] -> 174.65
A32: 2014-09-18 | B32: East | C32: Richard | D32: Pen Set | E32: 16 | F32: 15.99 | G32: =Table2[[#This Row],[Units]]*Table2[[#This Row],[Unit Price]] -> 255.84
A33: 2014-10-22 | B33: East | C33: Richard | D33: Pen | E33: 64 | F33: 8.99 | G33: =Table2[[#This Row],[Units]]*Table2[[#This Row],[Unit Price]] -> 575.36
A34: 2015-01-06 | B34: East | C34: Richard | D34: Pencil | E34: 95 | F34: 1.99 | G34: =Table2[[#This Row],[Units]]*Table2[[#This Row],[Unit Price]] -> 189.05
A35: 2015-02-18 | B35: East | C35: Richard | D35: Binder | E35: 4 | F35: 4.99 | G35: =Table2[[#This Row],[Units]]*Table2[[#This Row],[Unit Price]] -> 19.96
A36: 2015-04-01 | B36: East | C36: Richard | D36: Binder | E36: 60 | F36: 4.99 | G36: =Table2[[#This Row],[Units]]*Table2[[#This Row],[Unit Price]] -> 299.4
A37: 2015-06-08 | B37: East | C37: Richard | D37: Binder | E37: 60 | F37: 8.99 | G37: =Table2[[#This Row],[Units]]*Table2[[#This Row],[Unit Price]] -> 539.4
A38: 2014-09-01 | B38: Central | C38: Smith | D38: Desk | E38: 2 | F38: 125 | G38: =Table2[[#This Row],[Units]]*Table2[[#This Row],[Unit Price]] -> 250
A39: 2014-12-12 | B39: Central | C39: Smith | D39: Pencil | E39: 67 | F39: 1.29 | G39: =Table2[[#This Row],[Units]]*Table2[[#This Row],[Unit Price]] -> 86.43
A40: 2015-02-01 | B40: Central | C40: Smith | D40: Binder | E40: 87 | F40: 15 | G40: =Table2[[#This Row],[Units]]*Table2[[#This Row],[Unit Price]] -> 1305
A41: 2014-07-29 | B41: East | C41: Susan | D41: Binder | E41: 81 | F41: 19.99 | G41: =Table2[[#This Row],[Units]]*Table2[[#This Row],[Unit Price]] -> 1619.19
A42: 2014-11-08 | B42: East | C42: Susan | D42: Pen | E42: 15 | F42: 19.99 | G42: =Table2[[#This Row],[Units]]*Table2[[#This Row],[Unit Price]] -> 299.85
A43: 2014-12-29 | B43: East | C43: Susan | D43: Pen Set | E43: 74 | F43: 15.99 | G43: =Table2[[#This Row],[Units]]*Table2[[#This Row],[Unit Price]] -> 1183.26
A44: 2014-10-14 | B44: West | C44: Thomas | D44: Binder | E44: 57 | F44: 19.99 | G44: =Table2[[#This Row],[Units]]*Table2[[#This Row],[Unit Price]] -> 1139.43
A45: 2015-05-22 | B45: West | C45: Thomas | D45: Pencil | E45: 32 | F45: 1.99 | G45: =Table2[[#This Row],[Units]]*Table2[[#This Row],[Unit Price]] -> 63.68

Sheet Macro_Pivot
B2: Year To Date Sales Report For: | E2: =B7 -> Alex
C6: Binder | D6: Pen Set | E6: Pencil | F6: Grand Total
B7: Alex
B8: 2014
B9: Qtr4 | C9: 1933.95 | F9: 1933.95
B10: 2015
B11: Qtr1 | D11: 249.5 | E11: 179.64 | F11: 429.14
B12: Qtr2 | E12: 449.1 | F12: 449.1
B13: Grand Total | C13: 1933.95 | D13: 249.5 | E13: 628.74 | F13: 2812.19
G46: =TODAY() -> 2018-10-19
